{"text_format":"3","workbook":"xlsx","n_sheets":1,"sheets":["(1) EST SIT FINANCIERA  (2)"],"not_rendered":{"images":3,"external_links":5,"defined_names":181},"read":"whole","date_system":"1900"}

{"sheet":"(1) EST SIT FINANCIERA  (2)","index":0,"n_rows":83,"n_cols":7,"rows_kept":83,"merged":[[2,0,2,6],[3,0,3,6],[4,0,4,6],[5,0,5,6]]}
[]
[]
["UNIVERSIDAD TECNOLOGICA DE LOS VALLES CENTRALES DE OAXACA"]
["Estado de Situación Financiera Detallado - LDF "]
["Al  31  de  diciembre  de 2024 y al  31  de diciembre  de  2025"]
["(PESOS) "]
["   Concepto ","31 de diciiembre de 2025","31 de Diciembre de 2024",null,"Concepto",{"$f":"B7","v":"31 de diciiembre de 2025"},{"$f":"C7","v":"31 de Diciembre de 2024"}]
[]
["ACTIVO",{"$nulls":3},"PASIVO"]
["Activo Circulante",{"$nulls":3},"Pasivo Circulante"]
["Efectivo y Equivalentes",{"$f":"SUM(B12:B18)","v":{"v":4285096.67,"d":"4,285,097"}},{"$f":"SUM(C12:C18)","v":{"v":4583879.02,"d":"4,583,879"}},null,"Cuentas por Pagar a Corto Plazo",{"$f":"SUM(F12:F20)","v":{"v":1360034.2499999998,"d":"1,360,034"}},{"$f":"SUM(G12:G20)","v":{"v":5327866.99,"d":"5,327,867"}}]
["Efectivo",{"$nulls":3},"Servicios Personales por Pagar a Corto Plazo"]
["Bancos/Tesorería",{"v":4285096.67,"d":"4,285,097"},{"v":4583879.02,"d":"4,583,879"},null,"Proveedores por Pagar a Corto Plazo"]
["Bancos/Dependencias y Otros",{"$nulls":3},"Contratistas por Obras Públicas por Pagar a Corto Plazo"]
["Inversiones Temporales (Hasta 3 meses)",{"$nulls":3},"Participaciones y Aportaciones por Pagar a Corto Plazo"]
["Fondos con Afectación Específica",{"$nulls":3},"Transferencias Otorgadas por Pagar a Corto Plazo",{"v":250207.51,"d":"250,208"},{"v":2815320.74,"d":"2,815,321"}]
["Depósitos de Fondos de Terceros en Garantía y/o Administración",{"$nulls":3},"Intereses, Comisiones y Otros Gastos de la Deuda Pública por Pagar a Corto Plazo"]
["Otros Efectivos y Equivalentes",{"$nulls":3},"Retenciones y Contribuciones por Pagar a Corto Plazo",{"$f":"918484.95+99686.27+88742.14","v":{"v":1106913.3599999999,"d":"1,106,913"}},{"$f":"856652+121886+84406.51","v":{"v":1062944.51,"d":"1,062,945"}}]
["Derechos a Recibir Efectivo o Equivalentes",{"$f":"SUM(B20:B26)","v":{"v":390.29,"d":"390"}},{"$f":"SUM(C20:C26)","v":{"v":1414074.7,"d":"1,414,075"}},null,"Devoluciones de la Ley de Ingresos por Pagar a Corto Plazo"]
["Inversiones Financieras de Corto Plazo",{"$nulls":3},"Otras Cuentas por Pagar a Corto Plazo",{"v":2913.38,"d":"2,913"},{"$f":"20000+1429601.74","v":{"v":1449601.74,"d":"1,449,602"}}]
["Cuentas por Cobrar a Corto Plazo",{"$nulls":3},"Documentos por Pagar a Corto Plazo",{"$f":"SUM(F22:F24)","v":0},{"$f":"SUM(G22:G24)","v":0}]
["Deudores Diversos por Cobrar a Corto Plazo",{"v":390.29,"d":"390"},{"v":1414074.7,"d":"1,414,075"},null,"Documentos Comerciales por Pagar a Corto Plazo"]
["Ingresos por Recuperar a Corto Plazo",{"$nulls":3},"Documentos con Contratistas por Obras Públicas por Pagar a Corto Plazo"]
["Deudores por Anticipos de la Tesorería a Corto Plazo",{"$nulls":3},"Otros Documentos por Pagar a Corto Plazo"]
["Préstamos Otorgados a Corto Plazo",{"$nulls":3},"Porción a Corto Plazo de la Deuda Pública a Largo Plazo",{"$f":"F26+F27","v":0},{"$f":"G26+G27","v":0}]
["Otros Derechos a Recibir Efectivo o Equivalentes a Corto Plazo",{"$nulls":3},"Porción a Corto Plazo de la Deuda Pública"]
["Derechos a Recibir Bienes o Servicios",{"$f":"SUM(B28:B32)","v":0},{"$f":"SUM(C28:C32)","v":0},null,"Porción a Corto Plazo de Arrendamiento Financiero"]
["Anticipo a Proveedores por Adquisición de Bienes y Prestación de Servicios a Corto Plazo",{"$nulls":3},"Títulos y Valores a Corto Plazo"]
["Anticipo a Proveedores por Adquisición de Bienes Inmuebles y Muebles a Corto Plazo",{"$nulls":3},"Pasivos Diferidos a Corto Plazo",{"$f":"SUM(F30:F32)","v":0},{"$f":"SUM(G30:G32)","v":{"v":251750,"d":"251,750"}}]
["Anticipo a Proveedores por Adquisición de Bienes Intangibles a Corto Plazo",{"$nulls":3},"Ingresos Cobrados por Adelantado a Corto Plazo"]
["Anticipo a Contratistas por Obras Públicas a Corto Plazo",{"$nulls":3},"Intereses Cobrados por Adelantado a Corto Plazo"]
["Otros Derechos a Recibir Bienes o Servicios a Corto Plazo",{"$nulls":3},"Otros Pasivos Diferidos a Corto Plazo",0,{"v":251750,"d":"251,750"}]
["Inventarios",{"$f":"SUM(B34:B38)","v":0},{"$f":"SUM(C34:C38)","v":0},null,"Fondos y Bienes de Terceros en Garantía y/o Administración a Corto Plazo",{"$f":"SUM(F34:F39)","v":0},{"$f":"SUM(G34:G39)","v":0}]
["Inventario de Mercancías para Venta",{"$nulls":3},"Fondos en Garantía a Corto Plazo"]
["Inventario de Mercancías Terminadas",{"$nulls":3},"Fondos en Administración a Corto Plazo"]
["Inventario de Mercancías en Proceso de Elaboración",{"$nulls":3},"Fondos Contingentes a Corto Plazo"]
["Inventario de Materias Primas, Materiales y Suministros para Producción",{"$nulls":3},"Fondos de Fideicomisos, Mandatos y Contratos Análogos a Corto Plazo"]
["Bienes en Tránsito",{"$nulls":3},"Otros Fondos de Terceros en Garantía y/o Administración a Corto Plazo"]
["Almacenes",{"$nulls":3},"Valores y Bienes en Garantía a Corto Plazo"]
["Estimación por Pérdida o Deterioro de Activos Circulantes",{"$f":"SUM(B41:B42)","v":0},{"$f":"SUM(C41:C42)","v":0},null,"Provisiones a Corto Plazo",{"$f":"SUM(F41:F43)","v":0},{"$f":"SUM(G41:G43)","v":0}]
["Estimaciones para Cuentas Incobrables por Derechos a Recibir Efectivo o Equivalentes",{"$nulls":3},"Provisión para Demandas y Juicios a Corto Plazo"]
["Estimación por Deterioro de Inventarios",{"$nulls":3},"Provisión para Contingencias a Corto Plazo"]
["Otros Activos Circulantes",{"$f":"SUM(B44:B47)","v":0},{"$f":"SUM(C44:C47)","v":0},null,"Otras Provisiones a Corto Plazo"]
["Valores en Garantía",{"$nulls":3},"Otros Pasivos a Corto Plazo ",{"$f":"SUM(F45:F47)","v":0},{"$f":"SUM(G45:G47)","v":0}]
["Bienes en Garantía (excluye depósitos de fondos)",{"$nulls":3},"Ingresos por Clasificar"]
["Bienes Derivados de Embargos, Decomisos, Aseguramientos y Dación en Pago",{"$nulls":3},"Recaudación por Participar"]
["Adquisición con Fondos de Terceros",{"$nulls":3},"Otros Pasivos Circulantes"]
[]
["Total de Activos Circulantes",{"$f":"B11+B19+B27+B33+B40+B43","v":{"v":4285486.96,"d":"4,285,487"}},{"$f":"C11+C19+C27+C33+C40+C43","v":{"v":5997953.72,"d":"5,997,954"}},null,"Total de Pasivos Circulantes",{"$f":"F11+F21+F25+F28+F29+F33+F40+F44","v":{"v":1360034.2499999998,"d":"1,360,034"}},{"v":5579616.69,"d":"5,579,617"}]
[]
["Activo No Circulante",{"$nulls":3},"Pasivo No Circulante"]
["Inversiones Financieras a Largo Plazo",{"$nulls":3},"Cuentas por Pagar a Largo Plazo",0,0]
["Derechos a Recibir Efectivo o Equivalentes a Largo Plazo ",{"$nulls":3},"Documentos por Pagar a Largo Plazo"]
["Bienes Inmuebles, Infraestructura y Construcciones en Proceso ",{"v":56084600.49,"d":"56,084,600"},{"v":56084600.49,"d":"56,084,600"},null,"Deuda Pública a Largo Plazo"]
["Bienes Muebles ",{"v":45447557,"d":"45,447,557"},{"v":45258533,"d":"45,258,533"},null,"Pasivos Diferidos a Largo Plazo"]
["Activos Intangibles ",{"v":1292917,"d":"1,292,917"},{"v":1292917,"d":"1,292,917"},null,"Fondos y Bienes de Terceros en Garantía y/o en Administración a Largo Plazo"]
["Depreciación, Deterioro y Amortización Acumulada de Bienes ",{"v":-24391574,"d":"-24,391,574"},{"v":-21592576,"d":"-21,592,576"},null,"Provisiones a Largo Plazo"]
["Activos Diferidos"]
["Estimación por Pérdida o Deterioro de Activos no Circulantes",{"$nulls":3},"Total de Pasivos No Circulantes",{"$f":"SUM(F52:F57)","v":0},{"$f":"SUM(G52:G57)","v":0}]
["Otros Activos no Circulantes"]
[{"$nulls":4},"Total del Pasivo",{"$f":"F49+F59","v":{"v":1360034.2499999998,"d":"1,360,034"}},{"$f":"G49+G59","v":{"v":5579616.69,"d":"5,579,617"}}]
["Total de Activos No Circulantes",{"$f":"SUM(B52:B60)","v":{"v":78433500.49000001,"d":"78,433,500"}},{"$f":"SUM(C52:C60)","v":{"v":81043474.49000001,"d":"81,043,474"}}]
[{"$nulls":4},"HACIENDA PÚBLICA/PATRIMONIO"]
["Total del Activo",{"$f":"SUM(B49+B62)","v":{"v":82718987.45,"d":"82,718,987"}},{"$f":"SUM(C49+C62)","v":{"v":87041428.21000001,"d":"87,041,428"}}]
[{"$nulls":4},"Hacienda Pública/Patrimonio Contribuido",{"v":3291764,"d":"3,291,764"},{"$f":"SUM(G66:G68)","v":{"v":3291763.5700000003,"d":"3,291,764"}}]
[{"$nulls":4},"Aportaciones"]
[{"$nulls":4},"Donaciones de Capital",{"v":2810996.5,"d":"2,810,997"},{"v":2810997.08,"d":"2,810,997"}]
[{"$nulls":4},"Actualización de la Hacienda Pública/Patrimonio",{"v":480766.49,"d":"480,766"},{"v":480766.49,"d":"480,766"}]
[]
[{"$nulls":4},"Hacienda Pública/Patrimonio Generado",{"$f":"SUM(F71:F75)","v":{"v":78067189,"d":"78,067,189"}},{"$f":"SUM(G71:G75)","v":{"v":78170047.56,"d":"78,170,048"}}]
[{"$nulls":4},"Resultados del Ejercicio (Ahorro/ Desahorro)",{"v":506384,"d":"506,384"},{"v":-1204190.83,"d":"-1,204,191"}]
[{"$nulls":4},"Resultados de Ejercicios Anteriores",{"v":77560805,"d":"77,560,805"},{"v":79374238.39,"d":"79,374,238"}]
[{"$nulls":4},"Revalúos"]
[{"$nulls":4},"Reservas"]
[{"$nulls":4},"Rectificaciones de Resultados de Ejercicios Anteriores"]
[]
[{"$nulls":4},"Exceso o Insuficiencia en la Actualización de la Hacienda Pública/Patrimonio",{"$f":"F78+F79","v":0},{"$f":"G78+G79","v":0}]
[{"$nulls":4},"Resultado por Posición Monetaria"]
[{"$nulls":4},"Resultado por Tenencia de Activos no Monetarios"]
[]
[{"$nulls":4},"Total Hacienda Pública/Patrimonio",{"$f":"F65+F70+F77","v":{"v":81358953,"d":"81,358,953"}},{"$f":"G65+G70+G77","v":{"v":81461811.13,"d":"81,461,811"}}]
[]
[{"$nulls":4},"Total del Pasivo y Hacienda Pública/Patrimonio",{"$f":"F61+F81","v":{"v":82718987.25,"d":"82,718,987"}},{"$f":"G61+G81","v":{"v":87041427.82,"d":"87,041,428"}}]